bitfinex-derivatives/quotes_BTCF0:USTF0_20250213
["timestamp","ask_amount","ask_price","bid_price","bid_amount"]
[1739478298190,0.3379047,96184.0,96183.0,0.00215602]
[1739478298704,0.3379047,96184.0,96183.0,0.21006292]
[1739478300595,0.3379047,96184.0,96183.0,0.01393621]
[1739478307906,0.6987047,96184.0,96183.0,0.00215602]
[1739478308102,0.2079286,96173.0,96172.0,0.00155967]
[1739478308303,0.6987286,96173.0,96172.0,0.00155967]
[1739478308608,0.6987286,96173.0,96159.0,0.3608]
[1739478308609,0.2079567,96160.0,96159.0,0.3608]
[1739478308795,0.3279567,96160.0,96159.0,0.3608]
[1739478309602,0.3279567,96160.0,96159.0,0.37250112]
[1739478310206,0.3279567,96160.0,96159.0,0.58045992]
[1739478311505,0.3289567,96160.0,96159.0,0.58045992]
[1739478312109,0.3279567,96160.0,96159.0,0.58045992]
[1739478312412,0.3289567,96160.0,96159.0,0.58045992]
[1739478315704,0.3289567,96160.0,96159.0,0.37250112]
[1739478316513,0.121,96160.0,96151.0,0.0552]
[1739478316709,0.2079761,96151.0,96150.0,0.00015602]
[1739478316911,0.3279761,96151.0,96150.0,0.21949768]
[1739478317106,0.12,96151.0,96150.0,0.20813432]
[1739478318313,0.12,96151.0,96150.0,0.21013432]
[1739478318512,0.12,96151.0,96150.0,0.57093432]
[1739478318709,0.12,96151.0,96150.0,0.58249586]
[1739478319118,0.12,96151.0,96150.0,0.58549586]
[1739478320309,0.3279761,96151.0,96150.0,0.58549586]
[1739478322210,0.3279761,96151.0,96150.0,0.37751756]
[1739478322412,0.3279761,96151.0,96150.0,0.01671756]
[1739478324015,0.3279761,96151.0,96150.0,0.22469586]
[1739478324417,0.12,96151.0,96150.0,0.22469586]
[1739478324714,0.12,96151.0,96150.0,0.58549586]
[1739478328521,0.11428431,96151.0,96150.0,0.58549586]
[1739478328816,0.00015602,96169.0,96150.0,0.37751756]
[1739478329012,0.13015602,96169.0,96168.0,0.5687394]
[1739478329814,0.13015602,96169.0,96168.0,0.4687394]
[1739478330619,0.09819573,96169.0,96168.0,0.4687394]
[1739478331623,0.164,96204.0,96188.0,0.2078961]
[1739478331811,0.13155989,96189.0,96188.0,0.2078961]
[1739478332423,0.13,96189.0,96188.0,0.21924374]
[1739478332924,0.13,96189.0,96188.0,0.22024374]
[1739478334827,0.13,96189.0,96188.0,0.22124374]
[1739478340429,0.31056001,96204.0,96203.0,0.2078637]
[1739478340625,0.13,96204.0,96203.0,0.5686637]
[1739478341627,0.13,96204.0,96203.0,0.5696637]
[1739478341831,0.02,96204.0,96203.0,0.9314637]
[1739478342226,0.00015593,96213.0,96203.0,0.7236]
[1739478342431,0.11015593,96213.0,96212.0,0.5686442]
[1739478344331,0.11015593,96213.0,96212.0,0.5696442]
[1739478344536,0.11015593,96213.0,96212.0,0.5706442]
[1739478346932,0.08987262,96213.0,96212.0,0.5706442]
[1739478347440,0.00506339,96213.0,96212.0,0.5706442]
[1739478348535,0.00015593,96222.0,96221.0,0.2078248]
[1739478348741,0.12015593,96222.0,96221.0,0.5686248]
[1739478350142,0.12015593,96222.0,96221.0,0.5696248]
[1739478350642,0.00155911,96231.0,96230.0,0.2078054]
[1739478350834,0.10155911,96231.0,96230.0,0.5686054]
[1739478351033,0.1,96231.0,96230.0,0.5686054]
[1739478351342,0.1,96231.0,96230.0,0.58012415]
[1739478352337,0.3078032,96231.0,96230.0,0.58012415]
[1739478352536,0.3078032,96231.0,96230.0,0.58112415]
[1739478352737,0.1,96231.0,96230.0,0.58112415]
[1739478352935,0.1,96231.0,96230.0,0.58012415]
[1739478353134,0.1,96231.0,96230.0,0.58112415]
[1739478353337,0.1,96231.0,96230.0,0.58212415]
[1739478353930,0.3078032,96231.0,96230.0,0.58112415]
[1739478354139,0.3078032,96231.0,96230.0,0.58212415]
[1739478356242,0.3078032,96231.0,96230.0,0.37431875]
[1739478357037,0.3078032,96231.0,96230.0,0.01351875]
[1739478357242,0.3078032,96231.0,96230.0,0.22132415]
[1739478360250,0.3078032,96231.0,96230.0,0.58212415]
[1739478360448,0.1,96231.0,96230.0,0.58212415]
[1739478361654,0.3078032,96231.0,96230.0,0.58212415]
[1739478361854,0.1,96231.0,96230.0,0.58212415]
[1739478367258,0.01116516,96231.0,96230.0,0.58212415]
[1739478367672,0.00015593,96240.0,96239.0,0.207786]
[1739478367873,0.10015593,96240.0,96239.0,0.568586]
[1739478368962,0.10015593,96240.0,96239.0,0.569586]
[1739478369471,0.10015593,96240.0,96239.0,0.570586]
[1739478369666,0.10015593,96240.0,96239.0,0.569586]
[1739478369968,0.10015593,96240.0,96239.0,0.568586]
[1739478374364,0.10015593,96240.0,96239.0,0.3608]
[1739478374565,0.2077989,96233.0,96232.0,0.3608]
[1739478374766,0.2078032,96231.0,96230.0,0.01151875]
[1739478375074,0.2078076,96229.0,96228.0,0.2078088]
[1739478375268,0.3378076,96229.0,96226.0,0.18629674]
[1739478375573,0.2078119,96227.0,96226.0,0.18629674]
[1739478375769,0.6786119,96227.0,96226.0,0.18629674]
[1739478376375,0.3178119,96227.0,96226.0,0.19770419]
[1739478377066,0.3178119,96227.0,96226.0,0.01140745]
[1739478377266,0.3178119,96227.0,96221.0,0.00015593]
[1739478377267,0.11,96227.0,96221.0,0.00015593]
[1739478377572,0.2078196,96224.0,96222.0,0.2078224]
[1739478377767,0.3378196,96224.0,96222.0,0.2078224]
[1739478378363,0.3378196,96224.0,96222.0,0.0115215]
[1739478378570,0.2078227,96222.0,96221.0,0.00015593]
[1739478378766,0.3378227,96222.0,96221.0,0.00015593]
[1739478380372,0.3378227,96222.0,96221.0,0.01122461]
[1739478381472,0.3378227,96222.0,96212.0,0.3608]
[1739478381473,0.2078363,96216.0,96213.0,0.2078409]
[1739478381674,0.3278363,96216.0,96213.0,0.2078409]
[1739478381877,0.2078382,96215.0,96214.0,0.2078393]
[1739478382077,0.3278382,96215.0,96214.0,0.2078393]
[1739478383776,0.3278382,96215.0,96205.0,0.00015593]
[1739478383777,0.12,96215.0,96205.0,0.00015593]
[1739478383980,0.2078572,96206.0,96205.0,0.00015593]
[1739478384174,0.207881,96195.0,96194.0,0.01287526]
[1739478384373,0.678681,96195.0,96194.0,0.00155902]
[1739478384678,0.11,96195.0,96194.0,0.00155902]
[1739478385382,0.11,96195.0,96194.0,0.00755902]
[1739478385579,0.11,96195.0,96194.0,0.01875551]
[1739478385775,0.00015593,96204.0,96203.0,0.2078637]
[1739478386077,0.10015593,96204.0,96203.0,0.5686637]
[1739478387680,0.10015593,96204.0,96203.0,0.5736637]
[1739478388269,0.10015593,96204.0,96203.0,0.5756637]
[1739478388476,0.10015593,96204.0,96203.0,0.5736637]
[1739478390284,0.10015593,96204.0,96203.0,0.5756637]
[1739478390581,0.10015593,96204.0,96203.0,0.2148637]
[1739478390776,0.10015593,96204.0,96203.0,0.2128637]
[1739478391079,0.15845593,96204.0,96203.0,0.2128637]
[1739478391578,0.15845593,96204.0,96203.0,0.2088637]
[1739478391785,0.36631753,96204.0,96203.0,0.2098637]
[1739478392175,0.36631753,96204.0,96203.0,0.2118637]
[1739478392380,0.15845593,96204.0,96203.0,0.2118637]
[1739478392777,0.15845593,96204.0,96203.0,0.2098637]
[1739478392979,0.15845593,96204.0,96203.0,0.2088637]
[1739478393182,0.15845593,96204.0,96203.0,0.2128637]
[1739478393380,0.17845593,96204.0,96203.0,0.2128637]
[1739478393582,0.38631753,96204.0,96203.0,0.2128637]
[1739478393978,0.38631753,96204.0,96203.0,0.002]
[1739478394586,0.17845593,96204.0,96203.0,0.2098637]
[1739478394781,0.12015593,96204.0,96203.0,0.2088637]
[1739478395091,0.12015593,96204.0,96203.0,0.2098637]
[1739478395382,0.12015593,96204.0,96203.0,0.2675637]
[1739478396778,0.00015593,96204.0,96203.0,0.2675637]
[1739478396982,0.04015593,96204.0,96203.0,0.2675637]
[1739478399889,0.2078076,96229.0,96224.0,0.2078183]
[1739478400102,0.11,96225.0,96221.0,0.3608]
[1739478400284,0.11,96225.0,96224.0,0.2078183]
[1739478402682,0.11,96225.0,96224.0,0.2088183]
[1739478409990,0.2078052,96231.0,96230.0,0.2078035]
[1739478410193,0.3278052,96231.0,96230.0,0.2078035]
[1739478411302,0.3278052,96231.0,96230.0,0.2088035]
[1739478411498,0.12,96231.0,96230.0,0.5696035]
[1739478412197,0.12,96231.0,96230.0,0.5706035]
[1739478418610,0.3608,96276.0,96243.0,0.0519438]
[1739478418808,0.0577,96265.0,96261.0,0.3608]
[1739478419004,0.1777,96265.0,96264.0,0.207732]
[1739478419313,0.2077545,96256.0,96255.0,0.2077495]
[1739478419509,0.3177545,96256.0,96255.0,0.2077495]
[1739478420107,0.3177545,96256.0,96250.0,0.3608]
[1739478420108,0.20776,96251.0,96250.0,0.3608]
[1739478420319,0.12,96251.0,96246.0,0.00015585]
[1739478420504,0.2077687,96247.0,96246.0,0.20792665]
[1739478420706,0.3377687,96247.0,96246.0,0.00015585]
[1739478420906,0.2078109,96230.0,96229.0,0.2078073]
[1739478421106,0.2078183,96225.0,96224.0,0.2078148]
[1739478421412,0.13,96225.0,96224.0,0.2078148]
[1739478422007,0.13,96225.0,96224.0,0.2220427]
[1739478423113,0.3378162,96225.0,96224.0,0.2220427]
[1739478423307,0.3378162,96225.0,96224.0,0.0142279]
[1739478423511,0.2078184,96224.0,96215.0,0.00015585]
[1739478423711,0.1669,96224.0,96223.0,0.01571586]
[1739478423907,0.1669,96224.0,96223.0,0.20937907]
[1739478424108,0.11,96224.0,96223.0,0.20937907]
[1739478424613,0.11,96224.0,96223.0,0.22351235]
[1739478425009,0.11,96224.0,96223.0,0.22451235]
[1739478426315,0.11,96224.0,96223.0,0.22651235]
[1739478427510,0.11,96224.0,96223.0,0.22551235]
[1739478427712,0.11,96224.0,96223.0,0.22651235]
[1739478432220,0.11,96224.0,96223.0,0.28141235]
[1739478432815,0.11,96224.0,96223.0,0.22651235]
[1739478433210,0.3178183,96224.0,96223.0,0.01869185]
[1739478434223,0.6786183,96224.0,96223.0,0.00355857]
[1739478434521,0.6786183,96224.0,96223.0,0.00155857]
[1739478434827,0.2078356,96216.0,96200.0,0.12567503]
[1739478435124,0.2078356,96216.0,96197.0,0.4714]
[1739478435125,0.3178356,96216.0,96214.0,0.01423729]
[1739478436013,0.3178356,96216.0,96197.0,0.4158]
[1739478436323,0.6786356,96216.0,96200.0,0.12567503]
[1739478436917,0.6786356,96216.0,96215.0,0.00215585]
[1739478437825,0.6786356,96216.0,96215.0,0.00315585]
[1739478438226,0.4708,96216.0,96215.0,0.00115585]
[1739478438423,0.4708,96216.0,96215.0,0.00015585]
[1739478438732,0.11,96216.0,96215.0,0.00015585]
[1739478439731,0.1638,96216.0,96215.0,0.00015585]
[1739478440030,0.3716356,96216.0,96215.0,0.00015585]
[1739478440922,0.3716356,96216.0,96215.0,0.00115585]
[1739478441627,0.3716356,96216.0,96215.0,0.00015585]
[1739478441821,0.5246,96216.0,96194.0,0.00155902]
[1739478442126,0.207881,96195.0,96194.0,0.20944222]
[1739478442324,0.337881,96195.0,96194.0,0.00155902]
[1739478442527,0.337881,96195.0,96194.0,0.20944222]
[1739478442928,0.337881,96195.0,96194.0,0.01599616]
[1739478443133,0.337881,96195.0,96194.0,0.00555902]
[1739478444037,0.337881,96195.0,96194.0,0.004]
[1739478444528,0.2079005,96186.0,96185.0,0.00015593]
[1739478444827,0.6687005,96186.0,96185.0,0.00015593]
[1739478445227,0.3079005,96186.0,96185.0,0.00015593]
[1739478445427,0.3079005,96186.0,96185.0,0.20805843]
[1739478446228,0.1,96186.0,96185.0,0.20805843]
[1739478447032,0.1,96186.0,96185.0,0.20905843]
[1739478451739,0.3079004,96186.0,96185.0,0.20905843]
[1739478451945,0.1,96186.0,96185.0,0.20905843]
[1739478453331,0.3079004,96186.0,96185.0,0.20905843]
[1739478457044,0.1,96186.0,96185.0,0.20905843]
[1739478459237,0.1,96186.0,96185.0,0.26335843]
[1739478464942,0.05352415,96186.0,96185.0,0.26335843]
[1739478465453,0.20801743,96204.0,96203.0,0.2078636]
[1739478465641,0.31801743,96204.0,96203.0,0.2078636]
[1739478466644,0.32401743,96204.0,96203.0,0.2088636]
[1739478467051,0.32801743,96204.0,96203.0,0.2088636]
[1739478467746,0.32801743,96204.0,96203.0,0.22256981]
[1739478468354,0.32501743,96204.0,96203.0,0.22156981]
[1739478468553,0.32401743,96204.0,96203.0,0.22156981]
[1739478469056,0.32301743,96204.0,96203.0,0.22156981]
[1739478469651,0.32201743,96204.0,96203.0,0.22156981]
[1739478469853,0.32301743,96204.0,96203.0,0.22156981]
[1739478470348,0.11315593,96204.0,96203.0,0.22156981]
[1739478471258,0.32101753,96204.0,96203.0,0.22156981]
[1739478472053,0.32501753,96204.0,96203.0,0.22156981]
[1739478472353,0.32201753,96204.0,96203.0,0.22156981]
[1739478473061,0.32401753,96204.0,96203.0,0.22156981]
[1739478474460,0.32301753,96204.0,96203.0,0.22156981]
[1739478475269,0.32101753,96204.0,96203.0,0.22156981]
[1739478475459,0.32301753,96204.0,96203.0,0.22156981]
[1739478475858,0.32101753,96204.0,96203.0,0.22156981]
[1739478476071,0.32201753,96204.0,96203.0,0.22156981]
[1739478476467,0.32301753,96204.0,96203.0,0.22156981]
[1739478476669,0.12328639,96204.0,96203.0,0.22156981]
[1739478476870,0.17328639,96204.0,96203.0,0.22156981]
[1739478477572,0.17428639,96204.0,96203.0,0.22156981]
[1739478479169,0.17428639,96204.0,96203.0,0.01370621]
[1739478479371,0.056,96204.0,96191.0,0.3608]
[1739478479766,0.2078706,96203.0,96202.0,0.2078637]
[1739478480071,0.3178706,96203.0,96202.0,0.2078637]
[1739478480266,0.11,96203.0,96202.0,0.2078637]
[1739478481459,0.112,96203.0,96202.0,0.2078637]
[1739478482071,0.11,96203.0,96202.0,0.2078637]
[1739478482275,0.111,96203.0,96202.0,0.2078637]
[1739478482566,0.113,96203.0,96202.0,0.2078637]
[1739478482766,0.3208637,96203.0,96202.0,0.2078637]
[1739478483176,0.3198637,96203.0,96202.0,0.2078637]
[1739478483569,0.3188637,96203.0,96202.0,0.2078637]
[1739478483874,0.3198637,96203.0,96202.0,0.2078637]
[1739478484268,0.112,96203.0,96202.0,0.2078637]
[1739478485674,0.111,96203.0,96202.0,0.2078637]
[1739478486269,0.111,96203.0,96202.0,0.2088637]
[1739478487679,0.11,96203.0,96202.0,0.2098637]
[1739478488077,0.11,96203.0,96202.0,0.2088637]
[1739478488274,0.11,96203.0,96202.0,0.2078637]
[1739478488673,0.111,96203.0,96202.0,0.2078637]
[1739478489270,0.11,96203.0,96202.0,0.2078637]
[1739478490772,0.11,96203.0,96202.0,0.2088637]
[1739478490973,0.11,96203.0,96202.0,0.2098637]
[1739478491567,0.11,96203.0,96202.0,0.2078637]
[1739478492376,0.11,96203.0,96202.0,0.2088637]
[1739478492782,0.11,96203.0,96202.0,0.2098637]
[1739478493975,0.11,96203.0,96202.0,0.2088637]
[1739478494467,0.11,96203.0,96202.0,0.2078637]
[1739478497684,0.11,96203.0,96202.0,0.2098637]
[1739478498989,0.11,96203.0,96202.0,0.2088637]
[1739478499173,0.11,96203.0,96202.0,0.2098637]
[1739478499376,0.00015593,96213.0,96212.0,0.2078443]
[1739478499586,0.11,96213.0,96212.0,0.620605]
[1739478500180,0.11,96228.0,96222.0,0.2078227]
[1739478500491,0.13155944,96223.0,96222.0,0.5686227]
[1739478500985,0.13155944,96223.0,96222.0,0.58233347]
[1739478501581,0.13,96223.0,96222.0,0.58233347]
[1739478501983,0.134,96223.0,96222.0,0.58233347]
[1739478502182,0.141,96223.0,96222.0,0.58333347]
[1739478504988,0.1099,96239.0,96222.0,0.37551077]
[1739478505187,0.2299,96239.0,96238.0,0.2077881]
[1739478505395,0.4376859,96239.0,96238.0,0.2077881]
[1739478506084,0.4416859,96239.0,96238.0,0.2077881]
[1739478507485,0.4376859,96239.0,96238.0,0.2077881]
[1739478507684,0.4376859,96239.0,96238.0,0.2087881]
[1739478507991,0.7984859,96239.0,96238.0,0.002]
[1739478508583,0.4376859,96239.0,96238.0,0.002]
[1739478509292,0.4376859,96239.0,96238.0,0.2097881]
[1739478509484,0.2299,96239.0,96238.0,0.2097881]
[1739478509884,0.2299,96239.0,96238.0,0.22321831]
[1739478511183,0.2299,96239.0,96238.0,0.58401831]
[1739478511691,0.2299,96239.0,96238.0,0.58301831]
[1739478512683,0.12,96239.0,96238.0,0.58301831]
[1739478513096,0.12,96239.0,96238.0,0.58601831]
[1739478513799,0.12,96239.0,96238.0,0.58201831]
[1739478515897,0.3277859,96239.0,96238.0,0.37423021]
[1739478516197,0.3277859,96239.0,96238.0,0.58201831]
[1739478516388,0.12,96239.0,96238.0,0.58201831]
[1739478517391,0.3277859,96239.0,96238.0,0.58201831]
[1739478520599,0.2078248,96221.0,96220.0,1.3383867]
[1739478520801,0.2178248,96221.0,96220.0,1.3373867]
[1739478521591,0.2178248,96221.0,96220.0,1.3423867]
[1739478521791,0.2178248,96221.0,96220.0,1.35533336]
[1739478522402,0.2178248,96221.0,96220.0,1.36233336]
[1739478522991,0.2178248,96221.0,96220.0,1.35533336]
[1739478523606,0.2178248,96221.0,96220.0,0.78670666]
[1739478523797,0.2178248,96221.0,96220.0,0.78170666]
[1739478524000,0.2178248,96221.0,96220.0,0.76876]
[1739478525797,0.01,96221.0,96218.0,0.01463284]
[1739478526104,0.5686291,96219.0,96218.0,0.01463284]
[1739478526306,0.6786291,96219.0,96218.0,0.01463284]
[1739478529709,0.6786291,96219.0,96218.0,0.00155882]
[1739478536007,0.3178291,96219.0,96218.0,0.00155882]
[1739478536711,0.3178291,96219.0,96218.0,0.20939012]
[1739478540517,0.3178291,96219.0,96218.0,0.00155882]
[1739478541816,0.3178291,96219.0,96218.0,0.20939012]
[1739478543320,0.3178291,96219.0,96218.0,0.00155882]
[1739478545007,0.20784,96214.0,96213.0,0.00015593]
[1739478545320,0.32784,96214.0,96213.0,0.20799803]
[1739478546616,0.32784,96214.0,96213.0,0.22102694]
[1739478552617,0.12,96214.0,96213.0,0.22102694]
[1739478553321,0.4808,96214.0,96190.0,0.2078911]
[1739478553518,0.2078832,96194.0,96181.0,0.0555]
[1739478553720,0.3278832,96194.0,96186.0,0.3608]
[1739478554117,0.12,96194.0,96193.0,0.20944447]
[1739478554519,0.12,96194.0,96193.0,0.21344447]
[1739478555123,0.12,96194.0,96193.0,0.23132525]
[1739478558521,0.3278832,96194.0,96193.0,0.23132525]
[1739478559826,0.51989431,96256.0,96211.0,0.0519612]
[1739478559827,0.3608,96238.0,96211.0,0.0519612]
[1739478560118,0.4808,96232.0,96220.0,0.12567503]
[1739478560319,0.2078121,96227.0,96221.0,0.2078228]
[1739478560520,0.3278121,96227.0,96226.0,0.207814]
[1739478561317,0.12,96227.0,96226.0,0.22044171]
[1739478571724,0.12,96227.0,96226.0,0.22144171]
[1739478572135,0.00155917,96234.0,96233.0,0.2077989]
[1739478572330,0.11155917,96234.0,96233.0,0.5685989]
[1739478573532,0.11,96234.0,96233.0,0.5685989]
[1739478574324,0.00010356,96236.0,96235.0,0.2077946]
[1739478576234,0.00010356,96236.0,96235.0,0.2097946]
[1739478576828,0.00010356,96236.0,96235.0,0.2107946]
[1739478581039,0.14035711,96251.0,96235.0,0.003]
[1739478581235,0.25035711,96251.0,96250.0,0.2077622]
[1739478583243,0.2077795,96242.0,96241.0,0.00015584]
[1739478583442,0.3277795,96242.0,96241.0,0.00015584]
[1739478583954,0.3277795,96242.0,96241.0,0.20793744]
[1739478583955,0.12,96242.0,96241.0,0.20793744]
[1739478584242,0.3277795,96242.0,96241.0,0.20793744]
[1739478585639,0.3277795,96242.0,96241.0,0.00015584]
[1739478590146,0.3277795,96242.0,96241.0,0.20793754]
[1739478591343,0.3277795,96242.0,96241.0,0.00015584]
[1739478594448,0.34028309,96242.0,96241.0,0.00015584]
[1739478595855,0.3277795,96242.0,96241.0,0.00015584]
[1739478596751,0.34019739,96242.0,96241.0,0.00015584]
[1739478597453,0.3277795,96242.0,96241.0,0.00015584]
[1739478600359,0.14850162,96242.0,96241.0,0.00015584]
[1739478600659,0.2078032,96231.0,96230.0,0.00155874]
[1739478600851,0.0519514,96230.0,96202.0,0.3608]
[1739478601056,0.0519514,96230.0,96196.0,0.0525]
[1739478601057,0.3608,96210.0,96196.0,0.0525]
[1739478601355,0.3608,96210.0,96199.0,0.2078714]
[1739478601356,0.207874,96200.0,96199.0,0.2078714]
[1739478601558,0.327874,96200.0,96199.0,0.2078714]
[1739478601751,0.12,96200.0,96199.0,0.2204837]
[1739478602162,0.12,96200.0,96199.0,0.2751837]
[1739478602554,0.12,96200.0,96199.0,0.2771837]
[1739478603058,0.03398823,96200.0,96199.0,0.2771837]
[1739478603262,0.00015581,96209.0,96208.0,0.2078529]
[1739478603452,0.04015581,96209.0,96208.0,0.5686529]
[1739478604365,0.04015581,96209.0,96208.0,0.5726529]
[1739478605456,0.04015581,96209.0,96208.0,0.5746529]
[1739478606760,0.04015581,96209.0,96208.0,0.5736529]
[1739478607567,0.04015581,96209.0,96208.0,0.5726529]
[1739478608357,0.04015581,96209.0,96208.0,0.5706529]
[1739478608559,0.04015581,96209.0,96208.0,0.5726529]
[1739478609763,0.04015581,96209.0,96208.0,0.5696529]
[1739478609951,0.04015581,96209.0,96208.0,0.5726529]
[1739478610658,0.04015581,96209.0,96208.0,0.5716529]
[1739478610858,0.3608,96226.0,96225.0,0.2078162]
[1739478611059,0.4708,96226.0,96225.0,0.2078162]
[1739478611760,0.11,96226.0,96225.0,0.2078162]
[1739478612157,0.115,96226.0,96225.0,0.2078162]
[1739478612951,0.115,96226.0,96225.0,0.22022774]
[1739478613156,0.12,96226.0,96225.0,0.22022774]
[1739478613656,0.327814,96226.0,96225.0,0.22022774]
[1739478614056,0.318814,96226.0,96225.0,0.22022774]
[1739478614259,0.318814,96226.0,96217.0,0.0537]
[1739478614260,0.2078313,96218.0,96217.0,0.0537]
[1739478614466,0.2078313,96218.0,96216.0,0.00015593]
[1739478614467,0.2078335,96217.0,96216.0,0.00015593]
[1739478614664,0.3378335,96217.0,96216.0,0.01252317]
[1739478615161,0.3378335,96217.0,96216.0,0.22035877]
[1739478615559,0.13,96217.0,96216.0,0.22035877]
[1739478616467,0.13,96217.0,96216.0,0.22235877]
[1739478617066,0.13,96217.0,96216.0,0.22335877]
[1739478617456,0.13,96217.0,96216.0,0.22235877]
[1739478617766,0.13,96217.0,96216.0,0.22335877]
[1739478619366,0.3378335,96217.0,96216.0,0.22335877]
[1739478621456,0.3378335,96217.0,96216.0,0.00315593]
[1739478621670,0.3418335,96217.0,96216.0,0.00015593]
[1739478621856,0.3938335,96217.0,96216.0,0.00015593]
[1739478622566,0.3928335,96217.0,96216.0,0.00015593]
[1739478623161,0.3938335,96217.0,96216.0,0.00015593]
[1739478623769,0.3918335,96217.0,96216.0,0.00015593]
[1739478623970,0.3938335,96217.0,96216.0,0.00015593]
[1739478626268,0.3938335,96217.0,96216.0,0.20799153]
[1739478627573,0.3378335,96217.0,96216.0,0.20899153]
[1739478627767,0.3378335,96217.0,96216.0,0.20999153]
[1739478627968,0.3378335,96217.0,96216.0,0.20899153]
[1739478628478,0.3398335,96217.0,96216.0,0.20899153]
[1739478629174,0.3418335,96217.0,96216.0,0.20799153]
[1739478630179,0.3398335,96217.0,96216.0,0.20799153]
[1739478630677,0.3388335,96217.0,96216.0,0.20799153]
[1739478631681,0.3408335,96217.0,96216.0,0.20799153]
[1739478631877,0.3408335,96217.0,96216.0,0.00015593]
[1739478634273,0.3408335,96217.0,96216.0,0.20799153]
[1739478636768,0.3408335,96217.0,96216.0,0.00015593]
[1739478640583,0.3408335,96217.0,96216.0,0.20799153]
[1739478642583,0.3388335,96217.0,96216.0,0.20899153]
[1739478643178,0.3398335,96217.0,96216.0,0.20799153]
[1739478643485,0.3388335,96217.0,96216.0,0.20899153]
[1739478643882,0.131,96217.0,96216.0,0.20899153]
[1739478644087,0.131,96217.0,96216.0,0.20799153]
[1739478644885,0.131,96217.0,96216.0,0.20899153]
[1739478645798,0.13,96217.0,96216.0,0.20999153]
[1739478649889,0.3378335,96217.0,96216.0,0.20999153]
[1739478650099,0.00155937,96237.0,96216.0,0.00215593]
[1739478650287,0.11155937,96237.0,96236.0,0.2077924]
[1739478651901,0.11155937,96237.0,96236.0,0.21948582]
[1739478652498,0.11555937,96237.0,96236.0,0.21948582]
[1739478653192,0.11955937,96237.0,96236.0,0.22048582]
[1739478656707,0.14322157,96245.0,96244.0,0.2077752]
[1739478656905,0.21322157,96245.0,96244.0,0.2077752]
[1739478657906,0.21722157,96245.0,96244.0,0.2087752]
[1739478658411,0.21722157,96245.0,96244.0,0.001]
[1739478659125,0.21722157,96245.0,96244.0,0.002]
[1739478660725,0.26942157,96245.0,96244.0,0.002]
[1739478661621,0.26942157,96245.0,96244.0,0.2097751]
[1739478661622,0.074,96245.0,96244.0,0.2097751]
[1739478663521,0.074,96245.0,96244.0,0.2087751]
[1739478663723,0.074,96245.0,96244.0,0.2097751]
[1739478664129,0.07,96245.0,96244.0,0.2097751]
[1739478668118,0.638573,96245.0,96244.0,0.002]
[1739478669623,0.2077903,96237.0,96236.0,0.01169342]
[1739478669824,0.4908,96237.0,96224.0,0.2078178]
[1739478670023,0.2077989,96233.0,96232.0,0.06936]
[1739478670218,0.2078011,96232.0,96224.0,0.2078178]
[1739478670419,0.3278011,96232.0,96224.0,0.2078178]
[1739478670625,0.3278011,96232.0,96230.0,0.01164526]
[1739478670922,0.12,96232.0,96216.0,0.00015593]
[1739478671128,0.3608,96228.0,96216.0,0.00015593]
[1739478671423,0.207814,96226.0,96225.0,0.207815]
[1739478671626,0.327814,96226.0,96225.0,0.207815]
[1739478672426,0.12,96226.0,96225.0,0.207815]
[1739478672823,0.121,96226.0,96225.0,0.207815]
[1739478673528,0.121,96226.0,96225.0,0.568615]
[1739478673925,0.122,96226.0,96225.0,0.568615]
[1739478675432,0.11574388,96226.0,96225.0,0.568615]
[1739478675622,0.00155906,96246.0,96245.0,0.207773]
[1739478675832,0.13155906,96246.0,96245.0,0.568573]
[1739478676322,0.13155906,96246.0,96245.0,0.58067768]
[1739478676939,0.13255906,96246.0,96245.0,0.58167768]
[1739478677826,0.13255906,96246.0,96245.0,0.58267768]
[1739478681735,0.34032986,96246.0,96245.0,0.58267768]
[1739478682031,0.34032986,96246.0,96245.0,0.37490468]
[1739478682234,0.34032986,96246.0,96245.0,0.01410468]
[1739478683426,0.34032986,96246.0,96245.0,0.22187768]
[1739478685035,0.01587035,96254.0,96245.0,0.37490468]
[1739478685230,0.02587035,96254.0,96253.0,0.2077557]
[1739478686439,0.02587035,96254.0,96253.0,0.2087557]
[1739478686736,0.23362395,96254.0,96253.0,0.2087557]
[1739478687431,0.23362395,96254.0,96253.0,0.2097557]
[1739478691736,0.02587035,96254.0,96253.0,0.2097557]
[1739478692046,0.01,96254.0,96253.0,0.5705557]
[1739478696631,0.2177536,96254.0,96253.0,0.5705557]
[1739478697029,0.01,96254.0,96253.0,0.5705557]
[1739478698333,0.1073,96272.0,96253.0,0.5705557]
[1739478698334,0.36235877,96276.0,96253.0,0.4147386]
[1739478698640,0.207717,96272.0,96271.0,0.2077122]
[1739478698834,0.317717,96272.0,96271.0,0.2077122]
[1739478699239,0.317717,96272.0,96271.0,0.21961504]
[1739478700031,0.317717,96272.0,96271.0,0.22061504]
[1739478701233,0.317717,96272.0,96271.0,0.01390284]
[1739478701439,0.317717,96272.0,96271.0,0.22161974]
[1739478706238,0.317717,96272.0,96271.0,0.01390284]
[1739478706645,0.317717,96272.0,96271.0,0.002]
[1739478706844,0.317717,96272.0,96271.0,0.22127666]
[1739478707036,0.317717,96272.0,96271.0,0.209717]
[1739478707231,0.11,96272.0,96271.0,0.209717]
[1739478708540,0.11,96272.0,96271.0,0.22108621]
[1739478709342,0.3177148,96272.0,96271.0,0.22108621]
[1739478709544,0.11,96272.0,96271.0,0.22108621]
[1739478718653,0.11,96272.0,96271.0,0.21908621]
[1739478718847,0.11,96272.0,96271.0,0.22008621]
[1739478721049,0.11,96272.0,96271.0,0.21908621]
[1739478721249,0.11,96272.0,96271.0,0.22008621]
[1739478721651,0.11,96272.0,96271.0,0.22208621]
[1739478722051,0.1,96300.0,96271.0,0.01436921]
[1739478722251,0.1,96300.0,96292.0,0.2076716]
[1739478722555,0.44202529,96293.0,96292.0,0.2076716]
[1739478723559,0.64969479,96293.0,96292.0,0.2076716]
[1739478723753,0.44202529,96293.0,96292.0,0.2076716]
[1739478724252,0.44202529,96293.0,96292.0,0.2086716]
[1739478724650,0.44202529,96293.0,96292.0,0.001]
[1739478724845,0.64969479,96293.0,96292.0,0.001]
[1739478725450,0.3076695,96293.0,96292.0,0.001]
[1739478725759,0.3076695,96293.0,96292.0,0.002]
[1739478726257,0.3076695,96293.0,96292.0,0.001]
[1739478727554,0.207676,96290.0,96289.0,0.2076764]
[1739478727755,0.317676,96290.0,96289.0,0.2076764]
[1739478728056,0.11,96290.0,96289.0,0.2076781]